fUSD/lending_fUSD_20241107
["ID","MTS","AMOUNT","RATE_DAILY","PERIOD"]
[341572367,1731005466795,-500.0,0.00028545,2]
[341572368,1731005466804,-500.0,0.00028545,2]
[341572369,1731005466814,-1703.72,0.00028545,2]
[341572370,1731005466824,-500.0,0.00028545,2]
[341572371,1731005466834,-517.03147601,0.00028545,2]
[341572372,1731005466844,-500.0,0.00028545,2]
[341572373,1731005466854,-500.0,0.00028545,2]
[341572374,1731005466864,-500.0,0.00028545,2]
[341572375,1731005466874,-500.0,0.00028545,2]
[341572376,1731005466884,-500.0,0.00028545,2]
[341572377,1731005466894,-833.69,0.00028545,2]
[341572378,1731005466904,-500.0,0.00028545,2]
[341572379,1731005466914,-500.0,0.00028545,2]
[341572380,1731005466923,-523.24744776,0.00028545,2]
[341572381,1731005466933,-500.0,0.00028545,2]
[341572382,1731005466943,-316.752456,0.00028545,2]
[341572383,1731005466953,-500.0,0.00028545,2]
[341572384,1731005466963,-500.0,0.00028545,2]
[341572385,1731005466974,-500.0,0.00028545,2]
[341572386,1731005466984,-500.0,0.00028545,2]
[341572387,1731005466994,-500.0,0.00028545,2]
[341572388,1731005467003,-500.0,0.00028545,2]
[341572389,1731005467014,-150.0,0.00028545,2]
[341572390,1731005467026,-556.39,0.00028545,2]
[341572391,1731005467037,-500.0,0.00028545,2]
[341572392,1731005467048,-500.0,0.00028545,2]
[341572393,1731005467060,-863.33,0.00028545,2]
[341572394,1731005467071,-500.0,0.00028545,2]
[341572395,1731005467082,-500.0,0.00028545,2]
[341572396,1731005467094,-500.0,0.00028545,2]
[341572397,1731005467107,-500.0,0.00028545,2]
[341572398,1731005467118,-500.0,0.00028545,2]
[341572399,1731005467130,-500.0,0.00028545,2]
[341572400,1731005467140,-500.0,0.00028545,2]
[341572401,1731005467152,-500.0,0.00028545,2]
[341572402,1731005467162,-500.0,0.00028545,2]
[341572403,1731005467173,-500.0,0.00028545,2]
[341572404,1731005467183,-500.0,0.00028545,2]
[341572405,1731005467193,-500.0,0.00028545,2]
[341572406,1731005467205,-500.0,0.00028545,2]
[341572407,1731005467215,-500.0,0.00028545,2]
[341572408,1731005467226,-500.0,0.00028545,2]
[341572409,1731005467236,-500.0,0.00028545,2]
[341572410,1731005467250,-500.0,0.00028545,2]
[341572411,1731005467260,-500.0,0.00028545,2]
[341572412,1731005467271,-936.47,0.00028545,2]
[341572413,1731005467282,-500.0,0.00028545,2]
[341572414,1731005467292,-536.1,0.00028545,2]
[341572415,1731005467302,-500.0,0.00028545,2]
[341572416,1731005467313,-500.0,0.00028545,2]
[341572417,1731005467323,-500.0,0.00028545,2]
[341572418,1731005467336,-500.0,0.00028545,2]
[341572419,1731005467352,-500.0,0.00028545,2]
[341572420,1731005467362,-500.0,0.00028545,2]
[341572421,1731005467372,-618.31,0.00028545,2]
[341572422,1731005467383,-500.0,0.00028545,2]
[341572423,1731005467396,-500.0,0.00028545,2]
[341572424,1731005467407,-500.0,0.00028545,2]
[341572425,1731005467417,-500.0,0.00028545,2]
[341572426,1731005467428,-500.0,0.00028545,2]
[341572427,1731005467440,-500.0,0.00028545,2]
[341572428,1731005467451,-174.58790763,0.00028545,2]
[341572429,1731005467461,-500.0,0.00028545,2]
[341572430,1731005467472,-500.0,0.00028545,2]
[341572431,1731005467482,-500.0,0.00028545,2]
[341572432,1731005467492,-500.0,0.00028545,2]
[341572433,1731005467502,-500.0,0.00028545,2]
[341572434,1731005467512,-500.0,0.00028545,2]
[341572435,1731005467523,-835.93,0.00028545,2]
[341572436,1731005467533,-807.32,0.00028545,2]
[341572437,1731005467543,-674.33,0.00028545,2]
[341572438,1731005467554,-500.0,0.00028545,2]
[341572439,1731005467564,-746.26,0.00028545,2]
[341572440,1731005467574,-500.0,0.00028545,2]
[341572441,1731005467584,-500.0,0.00028545,2]
[341572442,1731005467594,-500.0,0.00028545,2]
[341572443,1731005467604,-307.8399229,0.00028545,2]
[341572444,1731005467614,-500.0,0.00028545,2]
[341572445,1731005467624,-500.0,0.00028545,2]
[341572446,1731005467634,-500.0,0.00028545,2]
[341572447,1731005467644,-500.0,0.00028545,2]
[341572448,1731005467654,-500.0,0.00028545,2]
[341572449,1731005467663,-513.49,0.00028545,2]
[341572450,1731005467673,-231.04708558,0.00028545,2]
[341572451,1731005467683,-500.0,0.00028545,2]
[341572452,1731005467693,-500.0,0.00028545,2]
[341572453,1731005467703,-500.0,0.00028545,2]
[341572454,1731005467713,-989.36,0.00028545,2]
[341572455,1731005467723,-527.05,0.00028545,2]
[341572456,1731005467732,-500.0,0.00028545,2]
[341572457,1731005467743,-1408.67,0.00028545,2]
[341572458,1731005467753,-500.0,0.00028545,2]
[341572459,1731005467762,-500.0,0.00028545,2]
[341572460,1731005467772,-500.0,0.00028545,2]
[341572461,1731005467782,-500.0,0.00028545,2]
[341572462,1731005468023,-500.0,0.00028545,2]
[341572463,1731005468033,-902.6,0.00028545,2]
[341572464,1731005468043,-500.0,0.00028545,2]
[341572465,1731005468053,-500.0,0.00028545,2]
[341572466,1731005468063,-500.0,0.00028545,2]
[341572467,1731005468072,-500.0,0.00028545,2]
[341572468,1731005468082,-500.0,0.00028545,2]
[341572469,1731005468092,-849.13,0.00028545,2]
[341572470,1731005468101,-500.0,0.00028545,2]
[341572471,1731005468112,-500.0,0.00028545,2]
[341572472,1731005468123,-500.0,0.00028545,2]
[341572473,1731005468132,-1512.0,0.00028545,2]
[341572474,1731005468142,-500.0,0.00028545,2]
[341572475,1731005468151,-738.69,0.00028545,2]
[341572476,1731005468161,-500.0,0.00028545,2]
[341572477,1731005468171,-567.7,0.00028545,2]
[341572478,1731005468180,-500.0,0.00028545,2]
[341572479,1731005468190,-500.0,0.00028545,2]
[341572480,1731005468200,-500.0,0.00028545,2]
[341572481,1731005468210,-500.0,0.00028545,2]
[341572482,1731005468219,-627.41,0.00028545,2]
[341572483,1731005468231,-500.0,0.00028545,2]
[341572484,1731005468243,-500.0,0.00028545,2]
[341572485,1731005468253,-500.0,0.00028545,2]
[341572486,1731005468263,-1057.66,0.00028545,2]
[341572487,1731005468273,-835.58,0.00028545,2]
[341572488,1731005468285,-500.0,0.00028545,2]
[341572489,1731005468294,-500.0,0.00028545,2]
[341572490,1731005468304,-500.0,0.00028545,2]
[341572491,1731005468315,-696.17,0.00028545,2]
[341572492,1731005468327,-500.0,0.00028545,2]
[341572493,1731005468338,-500.0,0.00028545,2]
[341572494,1731005468348,-500.0,0.00028545,2]
[341572495,1731005468357,-543.76,0.00028545,2]
[341572496,1731005468367,-500.0,0.00028545,2]
[341572497,1731005468377,-500.0,0.00028545,2]
[341572498,1731005468387,-578.35,0.00028545,2]
[341572499,1731005468398,-500.0,0.00028545,2]
[341572500,1731005468408,-929.4,0.00028545,2]
[341572501,1731005468417,-969.13,0.00028545,2]
[341572502,1731005468427,-500.0,0.00028545,2]
[341572503,1731005468437,-500.0,0.00028545,2]
[341572504,1731005468447,-500.0,0.00028545,2]
[341572505,1731005468457,-500.0,0.00028545,2]
[341572506,1731005468467,-500.0,0.00028545,2]
[341572507,1731005468476,-500.0,0.00028545,2]
[341572508,1731005468485,-500.0,0.00028545,2]
[341572509,1731005468495,-500.0,0.00028545,2]
[341572510,1731005468505,-500.0,0.00028545,2]
[341572511,1731005468515,-631.67,0.00028545,2]
[341572512,1731005468525,-500.0,0.00028545,2]
[341572513,1731005468535,-513.45012531,0.00028545,2]
[341572514,1731005468544,-500.0,0.00028545,2]
[341572515,1731005468554,-500.0,0.00028545,2]
[341572516,1731005468564,-500.0,0.00028545,2]
[341572517,1731005468574,-500.0,0.00028545,2]
[341572518,1731005468583,-500.0,0.00028545,2]
[341572519,1731005468593,-609.61560664,0.00028545,2]
[341572520,1731005468603,-500.0,0.00028545,2]
[341572521,1731005468613,-525.82,0.00028545,2]
[341572522,1731005468623,-1479.61,0.00028545,2]
[341572523,1731005468633,-500.0,0.00028545,2]
[341572524,1731005468644,-500.0,0.00028545,2]
[341572525,1731005468653,-500.0,0.00028545,2]
[341572526,1731005468663,-1345.01,0.00028545,2]
[341572527,1731005468673,-552.08,0.00028545,2]
[341572528,1731005468683,-646.4,0.00028545,2]
[341572529,1731005468692,-795.19,0.00028545,2]
[341572530,1731005468701,-500.67289855,0.00028545,2]
[341572531,1731005468711,-500.0,0.00028545,2]
[341572532,1731005468721,-549.23,0.00028545,2]
[341572533,1731005468730,-776.96,0.00028545,2]
[341572534,1731005468740,-500.0,0.00028545,2]
[341572535,1731005468751,-500.0,0.00028545,2]
[341572536,1731005468761,-765.09,0.00028545,2]
[341572537,1731005468771,-500.0,0.00028545,2]
[341572538,1731005468781,-500.0,0.00028545,2]
[341572539,1731005468790,-500.0,0.00028545,2]
[341572540,1731005468800,-500.0,0.00028545,2]
[341572541,1731005468810,-500.0,0.00028545,2]
[341572542,1731005468820,-150.0,0.00028545,2]
[341572543,1731005468830,-500.0,0.00028545,2]
[341572544,1731005468839,-500.0,0.00028545,2]
[341572545,1731005468849,-854.81,0.00028545,2]
[341572546,1731005468860,-179.97286554,0.00028545,2]
[341572547,1731005468870,-343.27241112,0.00028545,2]
[341572548,1731005468880,-639.97,0.00028545,2]
[341572549,1731005468890,-500.0,0.00028545,2]
[341572550,1731005468899,-366.11147961,0.00028545,2]
[341572551,1731005468910,-521.26,0.00028545,2]
[341572552,1731005468919,-1181.36,0.00028545,2]
[341572553,1731005468929,-500.0,0.00028545,2]
[341572554,1731005468939,-500.0,0.00028545,2]
[341572555,1731005468949,-500.0,0.00028545,2]
[341572556,1731005468959,-1335.41,0.00028545,2]
[341572557,1731005468969,-960.47,0.00028545,2]
[341572558,1731005468980,-987.88,0.00028545,2]
[341572559,1731005468991,-500.0,0.00028545,2]
[341572560,1731005469000,-723.55,0.00028545,2]
[341572561,1731005469010,-552.65,0.00028545,2]
[341572562,1731005469020,-711.81,0.00028545,2]
[341572563,1731005469031,-500.0,0.00028545,2]
[341572564,1731005469040,-606.54308605,0.00028545,2]
[341572565,1731005469050,-500.0,0.00028545,2]
[341572566,1731005469059,-602.46,0.00028545,2]
[341572567,1731005469069,-546.98,0.00028545,2]
[341572568,1731005469079,-500.0,0.00028545,2]
[341572569,1731005469089,-500.0,0.00028545,2]
[341572570,1731005469098,-821.1,0.00028545,2]
[341572571,1731005469108,-500.0,0.00028545,2]
[341572572,1731005469118,-633.17,0.00028545,2]
[341572573,1731005469128,-500.0,0.00028545,2]
[341572574,1731005469138,-706.85,0.00028545,2]
[341572575,1731005469148,-500.0,0.00028545,2]
[341572576,1731005469158,-561.42,0.00028545,2]
[341572577,1731005469167,-500.0,0.00028545,2]
[341572578,1731005469178,-500.0,0.00028545,2]
[341572579,1731005469188,-500.0,0.00028545,2]
[341572580,1731005469199,-210.32360785,0.00028545,2]
[341572581,1731005469209,-582.61,0.00028545,2]
[341572582,1731005469219,-500.0,0.00028545,2]
[341572583,1731005469230,-500.0,0.00028545,2]
[341572584,1731005469242,-500.0,0.00028545,2]
[341572585,1731005469252,-500.0,0.00028545,2]
[341572586,1731005469261,-507.74947098,0.00028545,2]
[341572587,1731005469270,-500.0,0.00028545,2]
[341572588,1731005469281,-501.75020128,0.00028545,2]
[341572589,1731005469291,-500.0,0.00028545,2]
[341572590,1731005469300,-1342.39,0.00028545,2]
[341572591,1731005469310,-1224.99,0.00028545,2]
[341572592,1731005469322,-508.0257849,0.00028545,2]
[341572593,1731005469332,-500.0,0.00028545,2]
[341572594,1731005469342,-500.0,0.00028545,2]
[341572595,1731005469352,-500.0,0.00028545,2]
[341572596,1731005469362,-595.23,0.00028545,2]
[341572597,1731005469372,-500.0,0.00028545,2]
[341572598,1731005469382,-599.09,0.00028545,2]
[341572599,1731005469392,-1692.83,0.00028545,2]
[341572600,1731005469401,-1495.96,0.00028545,2]
[341572601,1731005469411,-500.0,0.00028545,2]
[341572602,1731005469421,-1529.4,0.00028545,2]
[341572603,1731005469431,-1142.48,0.00028545,2]
[341572604,1731005469440,-435.72650262,0.00028545,2]
[341572605,1731005469450,-500.0,0.00028545,2]
[341572606,1731005469459,-500.0,0.00028545,2]
[341572607,1731005469469,-976.75,0.00028545,2]
[341572608,1731005469479,-610.8,0.00028545,2]
[341572609,1731005469489,-500.0,0.00028545,2]
[341572610,1731005469498,-500.0,0.00028545,2]
[341572611,1731005469508,-1950.6,0.00028545,2]
[341572612,1731005469518,-504.10064425,0.00028545,2]
[341572613,1731005469528,-1391.69,0.00028545,2]
[341572614,1731005469537,-500.0,0.00028545,2]
[341572615,1731005469547,-1149.56,0.00028545,2]
[341572616,1731005469557,-498.58301614,0.00028545,2]
[341572617,1731005469566,-500.0,0.00028545,2]
[341572618,1731005469577,-500.0,0.00028545,2]
[341572619,1731005469586,-6299.58,0.00028545,2]
[341572620,1731005469595,-500.0,0.00028545,2]
[341572621,1731005469605,-500.0,0.00028545,2]
[341572622,1731005469615,-151.0,0.00028545,7]
[341572623,1731005469625,-500.0,0.00028545,2]
[341572624,1731005469635,-1522.84,0.00028545,2]
[341572625,1731005469645,-500.0,0.00028545,2]
[341572626,1731005469655,-500.0,0.00028545,2]
[341572627,1731005469664,-500.0,0.00028545,2]
[341572628,1731005469673,-151.0,0.00028545,7]
[341572629,1731005469683,-6044.63,0.00028545,2]
[341572630,1731005469693,-500.0,0.00028545,2]
[341572631,1731005469702,-500.0,0.00028545,2]
[341572632,1731005469712,-500.0,0.00028545,2]
[341572633,1731005469722,-500.0,0.00028545,2]
[341572634,1731005469732,-500.0,0.00028545,2]
[341572635,1731005469742,-500.0,0.00028545,2]
[341572636,1731005469751,-500.0,0.00028545,2]
[341572637,1731005469761,-1951.93,0.00028545,2]
[341572638,1731005469771,-500.0,0.00028545,2]
[341572639,1731005469780,-500.0,0.00028545,2]
[341572640,1731005469790,-500.0,0.00028545,2]
[341572641,1731005469799,-500.0,0.00028545,2]
[341572642,1731005469809,-151.0,0.00028545,7]
[341572643,1731005469818,-500.0,0.00028545,2]
[341572644,1731005469828,-1317.58,0.00028545,2]
[341572645,1731005469838,-510.12873498,0.00028545,2]
[341572646,1731005469848,-6452.61,0.00028545,2]
[341572647,1731005469858,-512.88,0.00028545,2]
[341572648,1731005469867,-1277.93,0.00028545,2]
[341572649,1731005469877,-504.78306354,0.00028545,2]
[341572650,1731005469887,-500.0,0.00028545,2]
[341572651,1731005469897,-607.03,0.00028545,2]
[341572652,1731005469906,-1909.91,0.00028545,2]
[341572653,1731005469916,-953.23,0.00028545,2]
[341572654,1731005469926,-500.0,0.00028545,2]
[341572655,1731005469935,-1221.59,0.00028545,2]
[341572656,1731005469945,-500.0,0.00028545,2]
[341572657,1731005469955,-996.65,0.00028545,2]
[341572658,1731005469964,-500.0,0.00028545,2]
[341572659,1731005469974,-2370.98,0.00028545,2]
[341572660,1731005469984,-500.0,0.00028545,2]
[341572661,1731005469993,-500.0,0.00028545,2]
[341572662,1731005470002,-500.0,0.00028545,2]
[341572663,1731005470012,-503.55961172,0.00028545,2]
[341572664,1731005470022,-3972.78,0.00028545,2]
[341572665,1731005470032,-151.0,0.00028545,7]
[341572666,1731005470042,-500.0,0.00028545,2]
[341572667,1731005470052,-2203.31,0.00028545,2]
[341572668,1731005470061,-500.0,0.00028545,2]
[341572669,1731005470071,-157.567658,0.00028545,7]
[341572670,1731005470080,-1482.3,0.00028545,2]
[341572671,1731005470090,-2187.93,0.00028546,2]
[341572672,1731005470099,-1710.79,0.00028546,2]
[341572673,1731005470110,-695.3,0.00028546,2]
[341572674,1731005470119,-515.8,0.00028546,2]
[341572675,1731005470129,-3881.29702171,0.00028563,2]
[341572676,1731005470139,-216.84,0.00028587,30]
[341572677,1731005470148,-1313.81,0.00028638,2]
[341572678,1731005470158,-10000.46,0.000287,3]
[341572679,1731005470167,-200.0,0.00028719,2]
[341572680,1731005470178,-151.0,0.00028719,7]
[341572681,1731005470187,-151.0,0.00028719,7]
[341572682,1731005470197,-151.0,0.00028719,7]
[341572683,1731005470207,-6357.27375176,0.00028757,2]
[341572684,1731005470216,-500.0,0.00028762,2]
[341572685,1731005470225,-500.0,0.00028763,2]
[341572686,1731005470236,-527.20441336,0.00028763,2]
[341572687,1731005470250,-500.0,0.00028763,2]
[341572688,1731005470260,-500.0,0.00028763,2]
[341572689,1731005470269,-895.79,0.00028763,2]
[341572690,1731005470282,-500.0,0.00028763,2]
[341572691,1731005470293,-500.0,0.00028763,2]
[341572692,1731005470302,-481.90422785,0.00028763,2]
[341572693,1731005470312,-500.0,0.00028763,2]
[341572694,1731005470323,-500.0,0.00028763,2]
[341572695,1731005470333,-901.69,0.00028763,2]
[341572696,1731005470343,-500.0,0.00028763,2]
[341572697,1731005470353,-500.0,0.00028763,2]
[341572698,1731005470463,-500.0,0.00028763,2]
[341572699,1731005470474,-500.0,0.00028763,2]
[341572700,1731005470483,-500.1,0.00028763,2]
[341572701,1731005470494,-500.0,0.00028763,2]
[341572702,1731005470503,-637.08,0.00028763,2]
[341572703,1731005470513,-555.25,0.00028763,2]
[341572704,1731005470522,-500.0,0.00028763,2]
[341572705,1731005470532,-500.0,0.00028763,2]
[341572706,1731005470541,-1062.55,0.00028763,2]
[341572707,1731005470550,-500.0,0.00028763,2]
[341572708,1731005470560,-500.0,0.00028763,2]
[341572709,1731005470569,-542.0,0.00028763,2]
[341572710,1731005470579,-500.0,0.00028763,2]
[341572711,1731005470588,-500.0,0.00028763,2]
[341572712,1731005470597,-500.0,0.00028763,2]
[341572713,1731005470606,-743.27,0.00028763,2]
[341572714,1731005470615,-500.0,0.00028763,2]
[341572715,1731005470625,-543.59916004,0.00028763,2]
[341572716,1731005470634,-500.0,0.00028763,2]
[341572717,1731005470643,-500.0,0.00028763,2]
[341572718,1731005470652,-3038.13,0.00028763,2]
[341572719,1731005470661,-2506.79,0.00028763,2]
[341572720,1731005470670,-3447.39,0.00028763,2]
[341572721,1731005470679,-2120.96,0.00028763,2]
[341572722,1731005470689,-500.0,0.00028763,2]
[341572723,1731005470698,-500.0,0.00028763,2]
[341572724,1731005470707,-1810.22,0.00028763,2]
[341572725,1731005470717,-500.0,0.00028763,2]
[341572726,1731005470727,-4983.31,0.00028763,2]
[341572727,1731005470736,-1818.23,0.00028763,2]
[341572728,1731005470746,-544.77,0.00028763,2]
[341572729,1731005470755,-2681.63,0.00028763,2]
[341572730,1731005470764,-2480.34,0.00028763,2]
[341572731,1731005470774,-1927.923191,0.00028763,7]
[341572732,1731005470783,-3296.17,0.00028763,2]
[341572733,1731005470793,-1927.923191,0.00028763,7]
[341572734,1731005470802,-3171.77,0.00028763,2]
[341572735,1731005470811,-14188.8,0.00028763,2]
[341572736,1731005470821,-151.0,0.00028763,7]
[341572737,1731005470830,-500.0,0.00028763,2]
[341572738,1731005470839,-151.0,0.00028763,7]
[341572739,1731005470849,-500.0,0.00028763,2]
[341572740,1731005470858,-8246.92,0.00028763,2]
[341572741,1731005470867,-1201.84,0.00028763,2]
[341572742,1731005470877,-151.0,0.00028763,7]
[341572743,1731005470886,-2336.8,0.00028763,2]
[341572744,1731005470896,-1147.47,0.00028763,2]
[341572745,1731005470906,-17219.73,0.00028763,2]
[341572746,1731005470915,-500.0,0.00028763,2]
[341572747,1731005470924,-1033.36,0.00028763,2]
[341572748,1731005470934,-5372.81,0.00028763,2]
[341572749,1731005470944,-1179.84,0.00028763,2]
[341572750,1731005470953,-849.45,0.00028764,2]
[341572751,1731005470963,-500.0,0.00028764,2]
[341572752,1731005470972,-500.0,0.00028764,2]
[341572753,1731005470983,-918.01,0.00028764,2]
[341572754,1731005470993,-2914.41,0.00028764,2]
[341572755,1731005471003,-500.0,0.00028764,2]
[341572756,1731005471014,-500.0,0.00028764,2]
[341572757,1731005471024,-1423.94,0.00028764,2]
[341572758,1731005471032,-500.0,0.00028764,2]
[341572759,1731005471042,-500.0,0.00028764,2]
[341572760,1731005471051,-500.0,0.00028764,2]
[341572761,1731005471062,-500.0,0.00028764,2]
[341572762,1731005471071,-747.54,0.00028764,2]
[341572763,1731005471080,-563.41291339,0.00028764,2]
[341572764,1731005471090,-500.0,0.00028764,2]
[341572765,1731005471099,-500.0,0.00028764,2]
[341572766,1731005471109,-500.0,0.00028764,2]
[341572767,1731005471118,-500.0,0.00028764,2]
[341572768,1731005471128,-500.0,0.00028764,2]
[341572769,1731005471137,-500.0,0.00028764,2]
[341572770,1731005471146,-607.22,0.00028764,2]
[341572771,1731005471155,-500.0,0.00028764,2]
[341572772,1731005471164,-500.0,0.00028764,2]
[341572773,1731005471174,-715.51,0.00028764,2]
[341572774,1731005471183,-507.77398532,0.00028764,2]
[341572775,1731005471192,-500.0,0.00028764,2]
[341572776,1731005471201,-500.0,0.00028764,2]
[341572777,1731005471210,-500.0,0.00028764,2]
[341572778,1731005471219,-794.15,0.00028764,2]
[341572779,1731005471228,-500.0,0.00028764,2]
[341572780,1731005471240,-500.0,0.00028764,2]
[341572781,1731005471250,-2579.78,0.00028764,2]
[341572782,1731005471259,-500.0,0.00028764,2]
[341572783,1731005471268,-500.0,0.00028764,2]
[341572784,1731005471278,-511.46985001,0.00028764,2]
[341572785,1731005471289,-500.0,0.00028764,2]
[341572786,1731005471299,-881.04,0.00028764,2]
[341572787,1731005471309,-333.30141,0.00028764,2]
[341572788,1731005471319,-1017.21,0.00028764,2]
[341572789,1731005471329,-500.0,0.00028764,2]
[341572790,1731005471340,-530.62,0.00028764,2]
[341572791,1731005471349,-3696.31,0.00028764,2]
[341572792,1731005471359,-550.53674846,0.00028764,2]
[341572793,1731005471368,-510.51007232,0.00028764,2]
[341572794,1731005471377,-500.0,0.00028764,2]
[341572795,1731005471387,-1523.7,0.00028764,2]
[341572796,1731005471396,-500.0,0.00028764,2]
[341572797,1731005471406,-242.426532,0.00028764,2]
[341572798,1731005471415,-660.95,0.00028764,2]
[341572799,1731005471425,-500.0,0.00028764,2]
[341572800,1731005471435,-500.0,0.00028764,2]
[341572801,1731005471444,-1121.91,0.00028764,2]
[341572802,1731005471454,-1491.18,0.00028764,2]
[341572803,1731005471463,-500.0,0.00028764,2]
[341572804,1731005471473,-1469.01,0.00028764,2]
[341572805,1731005471482,-1423.08,0.00028764,2]
[341572806,1731005471492,-500.0,0.00028764,2]
[341572807,1731005471501,-505.50910671,0.00028764,2]
[341572808,1731005471510,-500.0,0.00028764,2]
[341572809,1731005471519,-510.03,0.00028764,2]
[341572810,1731005471529,-500.0,0.00028764,2]
[341572811,1731005471538,-1382.61,0.00028764,2]
[341572812,1731005471549,-1288.89,0.00028764,2]
[341572813,1731005471558,-500.0,0.00028764,2]
[341572814,1731005471568,-500.0,0.00028764,2]
[341572815,1731005471577,-500.0,0.00028764,2]
[341572816,1731005471587,-500.0,0.00028764,2]
[341572817,1731005471601,-1339.1,0.00028764,2]
[341572818,1731005471610,-500.0,0.00028764,2]
[341572819,1731005471620,-757.33,0.00028764,2]
[341572820,1731005471629,-3516.89,0.00028764,2]
[341572821,1731005471638,-1866.4,0.00028764,2]
[341572822,1731005471648,-907.25,0.00028764,2]
[341572823,1731005471657,-151.0,0.00028764,7]
[341572824,1731005471666,-625.53658167,0.00028764,2]
[341572825,1731005471675,-500.0,0.00028764,2]
[341572826,1731005471692,-876.12,0.00028764,2]
[341572827,1731005471702,-500.0,0.00028764,2]
[341572828,1731005471711,-500.0,0.00028764,2]
[341572829,1731005471720,-629.56992013,0.00028764,2]
[341572830,1731005471729,-1168.06,0.00028764,2]
[341572831,1731005471739,-500.0,0.00028764,2]
[341572832,1731005471748,-749.52,0.00028764,2]
[341572833,1731005471757,-563.32,0.00028764,2]
[341572834,1731005471767,-4091.82,0.00028764,2]
[341572835,1731005471777,-1114.79,0.00028764,2]
[341572836,1731005471786,-24761.87,0.00028764,2]
[341572837,1731005471795,-500.0,0.00028764,2]
[341572838,1731005471805,-500.0,0.00028764,2]
[341572839,1731005471814,-908.41,0.00028764,2]
[341572840,1731005471824,-500.0,0.00028764,2]
[341572841,1731005471833,-694.94,0.00028764,2]
[341572842,1731005471843,-500.0,0.00028764,2]
[341572843,1731005471852,-500.0,0.00028764,2]
[341572844,1731005471862,-151.0,0.00028764,7]
[341572845,1731005471871,-500.0,0.00028764,2]
[341572846,1731005471881,-835.86,0.00028764,2]
[341572847,1731005471890,-500.0,0.00028764,2]
[341572848,1731005471899,-500.0,0.00028764,2]
[341572849,1731005471908,-500.0,0.00028764,2]
[341572850,1731005471918,-514.04,0.00028764,2]
[341572851,1731005471927,-1245.93,0.00028764,2]
[341572852,1731005471936,-3252.41,0.00028764,2]
[341572853,1731005471945,-579.96,0.00028764,2]
[341572854,1731005471954,-808.64,0.00028764,2]
[341572855,1731005471963,-1820.75,0.00028764,2]
[341572856,1731005471972,-500.0,0.00028764,2]
[341572857,1731005471982,-500.0,0.00028764,2]
[341572858,1731005471990,-1711.32,0.00028764,2]
[341572859,1731005471999,-1964.97,0.00028764,2]
[341572860,1731005472008,-1005.55,0.00028764,2]
[341572861,1731005472017,-2633.57,0.00028764,2]
[341572862,1731005472027,-500.0,0.00028764,2]
[341572863,1731005472036,-1110.86,0.00028764,2]
[341572864,1731005472045,-500.0,0.00028764,2]
[341572865,1731005472055,-6468.1,0.00028764,2]
[341572866,1731005472063,-500.0,0.00028764,2]